bitfinex-derivatives/quotes_BTCF0:USTF0_20251219
["timestamp","ask_amount","ask_price","bid_price","bid_amount"]
[1766114472034,0.0116296,86043.0,86031.0,0.00588]
[1766114472236,0.14751308,86042.0,86018.0,0.01395801]
[1766114472440,0.00017432,86039.0,86026.0,0.0116318]
[1766114472625,0.00017432,86039.0,86021.0,0.00232]
[1766114472947,0.00017432,86039.0,86022.0,0.13514]
[1766114473134,0.00017432,86039.0,86021.0,0.00232]
[1766114473135,0.14250432,86039.0,86021.0,0.00232]
[1766114473442,0.14250432,86039.0,86018.0,0.00232511]
[1766114473443,0.011631,86033.0,86018.0,0.00232511]
[1766114473635,0.0116317,86028.0,86018.0,0.00232511]
[1766114473822,0.00588,86032.0,86011.0,0.00588]
[1766114474029,0.14205,86028.0,86011.0,0.00588]
[1766114474223,0.14205,86023.0,86009.0,0.05]
[1766114474437,0.00588,86022.0,86009.0,0.05]
[1766114474738,0.00302308,86027.0,86010.0,0.00588]
[1766114474938,0.14205,86023.0,86006.0,0.0116345]
[1766114475134,0.00588,86022.0,86007.0,0.0116345]
[1766114475328,0.00588,86022.0,86007.0,0.0116344]
[1766114475529,0.00605432,86023.0,86002.0,0.146775]
[1766114475729,0.0116326,86022.0,86003.0,0.00588]
[1766114475926,0.00605432,86023.0,86003.0,0.00588]
[1766114476133,0.0116328,86020.0,85994.0,0.0116362]
[1766114476336,0.0116336,86014.0,85995.0,0.00588]
[1766114476539,0.00010308,86013.0,85990.0,0.13514]
[1766114476739,0.14215308,86013.0,85989.0,0.00013193]
[1766114477043,0.00010308,86013.0,86000.0,0.34873221]
[1766114477242,0.00010308,86013.0,86001.0,0.00588]
[1766114477431,0.00010308,86013.0,86002.0,0.0116351]
[1766114477745,0.00010308,86013.0,86003.0,0.00588]
[1766114477943,0.00010308,86013.0,85991.0,0.13514]
[1766114478130,0.01173678,86013.0,85992.0,0.00588]
[1766114478441,0.00010308,86013.0,85996.0,0.0116359]
[1766114478640,0.00010308,86013.0,86002.0,0.0116351]
[1766114478939,0.00605432,86023.0,86002.0,0.00588]
[1766114478940,0.01768672,86023.0,86002.0,0.00588]
[1766114479533,0.00605432,86023.0,86002.0,0.00588]
[1766114479734,0.00605432,86023.0,86003.0,0.011635]
[1766114480039,0.00017432,86023.0,86012.0,0.0116337]
[1766114480242,0.00017432,86023.0,86013.0,0.0058]
[1766114480539,0.01180662,86023.0,86001.0,0.13514]
[1766114480744,0.01180662,86023.0,85973.0,0.011639]
[1766114480745,0.00017432,86023.0,86002.0,0.00588]
[1766114480938,0.00017432,86023.0,86006.0,0.0116346]
[1766114481144,0.00017432,86023.0,86006.0,0.1467746]
[1766114481442,0.00017432,86023.0,86004.0,0.0116348]
[1766114481636,0.00017432,86023.0,86007.0,0.0116344]
[1766114481945,0.20195691,86040.0,86005.0,0.14102]
[1766114481946,0.14205,86089.0,86052.0,0.13514]
[1766114482134,0.0116239,86086.0,86054.0,0.13514]
[1766114482336,0.14205,86083.0,86054.0,0.13514]
[1766114482640,0.14205,86095.0,86054.0,0.13514]
[1766114482946,0.00017432,86083.0,86070.0,0.0116259]
[1766114483143,0.00017432,86083.0,86071.0,0.00588]
[1766114483348,0.00017432,86083.0,86072.0,0.0116257]
[1766114483643,0.14205,86105.0,86072.0,0.13514]
[1766114483833,0.14205,86105.0,86070.0,0.0116259]
[1766114483834,0.0116227,86095.0,86070.0,0.0116259]
[1766114484246,0.14205,86094.0,86071.0,0.00388]
[1766114484543,0.14205,86094.0,86047.0,0.0624734]
[1766114484544,0.14205,86085.0,86074.0,4.21e-06]
[1766114484730,0.0116249,86079.0,86053.0,2.44244]
[1766114484930,0.0116249,86079.0,86054.0,0.00588]
[1766114485136,0.0116241,86084.0,86055.0,0.0116279]
[1766114485346,0.00017421,86091.0,86064.0,0.0116268]
[1766114485537,0.00017421,86091.0,86065.0,0.00588]
[1766114485741,0.0116233,86090.0,86069.0,0.00017421]
[1766114486038,0.00017421,86091.0,86069.0,0.00017421]
[1766114486233,0.00017421,86091.0,86070.0,0.00204]
[1766114486435,0.00017421,86091.0,86074.0,0.0116253]
[1766114486630,0.00017421,86091.0,86074.0,0.1467653]
[1766114487442,4.21e-06,86091.0,86074.0,0.1467654]
[1766114487940,4.21e-06,86091.0,86080.0,0.20195691]
[1766114488141,4.21e-06,86091.0,86081.0,0.00588]
[1766114489833,4.21e-06,86091.0,86081.0,0.14102]
[1766114490637,4.21e-06,86091.0,86082.0,0.0116243]
[1766114490839,4.21e-06,86091.0,86082.0,0.1467643]
[1766114491143,0.0116186,86125.0,86086.0,0.13514]
[1766114491349,0.14205,86136.0,86106.0,0.011621]
[1766114491544,0.00588,86139.0,86111.0,0.0116204]
[1766114491745,0.0116168,86138.0,86111.0,0.13514]
[1766114492046,2.44192,86145.0,86116.0,0.00017421]
[1766114492047,0.00017421,86133.0,86116.0,0.00017421]
[1766114492234,0.00017421,86133.0,86117.0,0.14102]
[1766114492551,2.44184,86155.0,86117.0,0.14102]
[1766114492552,2.44184,86155.0,86121.0,0.13514]
[1766114492734,2.44184,86155.0,86120.0,0.2969038]
[1766114492735,0.14205,86167.0,86135.0,0.13514]
[1766114493056,0.153663,86167.0,86138.0,0.0116166]
[1766114493236,0.0116123,86172.0,86141.0,0.13514]
[1766114493435,2.44176,86177.0,86120.0,2.7386638]
[1766114493436,0.0116116,86177.0,86150.0,0.4320438]
[1766114493634,0.0116116,86177.0,86151.0,0.00588]
[1766114493839,0.14205,86174.0,86148.0,0.0001741]
[1766114494037,0.0116135,86163.0,86148.0,0.0001741]
[1766114494238,0.011614,86159.0,86149.0,0.00588]
[1766114494542,0.0116135,86162.0,86149.0,0.00588]
[1766114495046,0.0116135,86162.0,86150.0,0.00588]
[1766114495350,9e-08,86178.0,86166.0,0.13514]
[1766114495556,0.0116084,86201.0,86172.0,0.13514]
[1766114495851,0.0116076,86206.0,86181.0,0.13514]
[1766114496052,0.0116076,86206.0,86180.0,0.2969038]
[1766114496053,0.01392581,86218.0,86182.0,0.14102]
[1766114496351,0.0116066,86214.0,86190.0,0.2969038]
[1766114496650,0.0116066,86214.0,86191.0,0.00588]
[1766114497052,0.00231971,86218.0,86191.0,0.00588]
[1766114497053,0.0116071,86210.0,86191.0,0.00588]
[1766114497348,0.05011519,86209.0,86191.0,0.00588]
[1766114497546,0.00231971,86218.0,86191.0,0.00588]
[1766114497547,0.00231971,86218.0,86199.0,0.2969038]
[1766114497748,0.00231971,86218.0,86200.0,0.00588]
[1766114498641,0.00231971,86218.0,86193.0,0.13514]
[1766114498843,0.00231971,86218.0,86194.0,0.00588]
[1766114499041,0.00231971,86218.0,86195.0,0.00588]
[1766114499249,0.00231971,86218.0,86195.0,0.14102]
[1766114499941,0.0116038,86235.0,86201.0,0.13514]
[1766114500139,0.0116024,86245.0,86220.0,0.2969038]
[1766114500347,0.00388,86252.0,86221.0,0.00588]
[1766114500551,0.14205,86248.0,86211.0,0.13514]
[1766114500745,0.0116052,86225.0,86212.0,0.00588]
[1766114500941,0.2969038,86240.0,86211.0,0.00588]
[1766114500942,0.14793,86229.0,86211.0,0.00588]
[1766114501145,0.0116065,86215.0,86190.0,0.13514]
[1766114501346,0.14793,86229.0,86191.0,0.0022]
[1766114501553,0.00017365,86219.0,86201.0,0.000174]
[1766114501752,0.00017365,86219.0,86202.0,0.00588]
[1766114502147,0.01177955,86219.0,86203.0,0.00588]
[1766114502350,0.00017365,86219.0,86204.0,0.00588]
[1766114502845,0.00017365,86219.0,86205.0,0.00588]
[1766114503253,0.00017365,86219.0,86205.0,0.14169]
[1766114503454,0.00017365,86219.0,86201.0,0.000174]
[1766114503650,0.01177965,86219.0,86206.0,0.00588]
[1766114503851,0.00017365,86219.0,86206.0,0.00588]
[1766114506661,3.65e-06,86219.0,86206.0,0.00588]
[1766114506852,3.65e-06,86219.0,86206.0,0.14169]
[1766114508558,3.65e-06,86219.0,86207.0,0.00588]
[1766114508757,3.65e-06,86219.0,86208.0,0.00588]
[1766114511666,0.13508,86241.0,86208.0,0.14169]
[1766114511866,0.13508,86224.0,86201.0,0.000174]
[1766114512068,0.0116081,86203.0,86190.0,0.13581]
[1766114512366,0.2969038,86230.0,86179.0,0.01175449]
[1766114512367,0.13739864,86258.0,86194.0,0.13581]
[1766114512557,0.0116025,86244.0,86230.0,0.2969038]
[1766114512761,0.13508,86251.0,86231.0,0.00588]
[1766114512762,0.0116017,86250.0,86231.0,0.00588]
[1766114512958,0.00588,86255.0,86233.0,0.13581]
[1766114513167,4e-06,86249.0,86240.0,0.2969038]
[1766114513374,0.01391934,86258.0,86241.0,0.00588]
[1766114513762,0.13508,86278.0,86248.0,0.4327138]
[1766114513962,0.13508,86278.0,86249.0,0.14169]
[1766114514363,0.0115981,86277.0,86255.0,0.00017389]
[1766114514564,0.0115989,86271.0,86255.0,0.00017389]
[1766114514760,0.0115989,86271.0,86179.0,0.00014329]
[1766114514761,0.1466795,86267.0,86253.0,3.37e-06]
[1766114514966,0.1466795,86267.0,86235.0,0.0116037]
[1766114515169,0.0115991,86269.0,86240.0,0.147413]
[1766114515481,0.1466791,86269.0,86241.0,0.00388]
[1766114515884,0.00017354,86264.0,86246.0,0.00017389]
[1766114516177,0.00017354,86264.0,86247.0,0.00588]
[1766114516971,0.13508,86288.0,86246.0,0.13598389]
[1766114517270,0.0115982,86277.0,86251.0,0.13581]
[1766114517469,0.0115982,86277.0,86252.0,0.00588]
[1766114517869,0.0115982,86277.0,86252.0,0.14169]
[1766114518075,0.0115982,86277.0,86256.0,0.00017389]
[1766114518269,0.0115986,86273.0,86257.0,0.00588]
[1766114518470,0.017478,86278.0,86257.0,0.00588]
[1766114518677,0.00588,86278.0,86257.0,0.00588]
[1766114519074,0.0115967,86287.0,86259.0,0.0116004]
[1766114519383,0.13508,86283.0,86260.0,0.00588]
[1766114519583,0.13508,86283.0,86263.0,0.00017389]
[1766114520077,0.0115978,86279.0,86263.0,0.00017389]
[1766114520279,0.0115953,86298.0,86274.0,0.13581]
[1766114520580,0.1466759,86294.0,86277.0,9e-08]
[1766114520983,0.0115975,86282.0,86277.0,9e-08]
[1766114521188,0.0115969,86286.0,86277.0,9e-08]
[1766114521387,0.13508,86321.0,86277.0,0.13581009]
[1766114521592,0.0115965,86289.0,86262.0,0.0116]
[1766114521778,0.0115965,86289.0,86267.0,0.0115993]
[1766114521981,0.0115965,86289.0,86263.0,0.0174799]
[1766114522492,0.00588,86300.0,86258.0,0.13836]
[1766114522493,0.14371,86290.0,86258.0,0.13836]
[1766114522679,0.0116009,86257.0,86243.0,0.00010176]
[1766114522881,0.00017389,86259.0,86243.0,6e-08]
[1766114523083,0.00017389,86259.0,86241.0,0.00017389]
[1766114523084,0.0116025,86244.0,86241.0,5e-08]
[1766114523278,0.00588,86258.0,86241.0,5e-08]
[1766114523586,0.00588,86258.0,86217.0,2.43724]
[1766114523587,0.0116034,86238.0,86213.0,0.0116067]
[1766114523798,0.13783,86262.0,86224.0,0.13836]
[1766114523981,0.0116026,86244.0,86225.0,0.00588]
[1766114524281,0.0116035,86237.0,86214.0,0.13836]
[1766114524481,0.0116035,86237.0,86217.0,0.00017389]
[1766114524685,0.0116043,86231.0,86217.0,0.00017389]
[1766114524884,0.00017389,86234.0,86218.0,0.00588]
[1766114525086,0.00017389,86234.0,86219.0,0.0116058]
[1766114525397,0.00010176,86243.0,86227.0,0.0116047]
[1766114525693,0.00010176,86243.0,86233.0,0.0116039]
[1766114525890,1.76e-06,86243.0,86228.0,0.0174845]
[1766114526081,1.76e-06,86243.0,86228.0,0.14424]
[1766114526287,1.76e-06,86243.0,86228.0,0.1558446]
[1766114526688,1.76e-06,86243.0,86228.0,0.00588]
[1766114527389,1.76e-06,86243.0,86229.0,0.00588]
[1766114527692,0.0116028,86242.0,86229.0,0.00588]
[1766114528084,0.0116028,86242.0,86217.0,0.00017389]
[1766114528085,0.0116034,86238.0,86217.0,0.00017389]
[1766114528290,0.0116034,86238.0,86218.0,0.00588]
[1766114528987,0.07353156,86269.0,86223.0,0.13836]
[1766114528988,0.0116015,86252.0,86223.0,0.13836]
[1766114529194,0.0116002,86262.0,86237.0,0.13836]
[1766114529498,0.0115994,86267.0,86244.0,0.0116024]
[1766114529681,0.0115994,86267.0,86248.0,0.13836]
[1766114529682,0.0115995,86267.0,86248.0,0.13836]
[1766114529883,0.0115988,86272.0,86250.0,0.0116017]
[1766114530082,0.0001738,86270.0,86252.0,0.00017389]
[1766114530386,0.0115991,86269.0,86252.0,0.00017389]
[1766114530985,0.0115996,86266.0,86252.0,0.00017389]
[1766114531191,0.0116004,86260.0,86238.0,0.1499632]
[1766114531490,0.0034,86275.0,86220.0,0.2969038]
[1766114531491,0.0115999,86264.0,86243.0,0.0116026]
[1766114531700,0.0115994,86268.0,86246.0,0.0116022]
[1766114531903,0.0115997,86265.0,86247.0,0.00588]
[1766114532085,0.0115992,86269.0,86247.0,0.0174821]
[1766114532399,0.0115996,86266.0,86249.0,0.00017389]
[1766114532690,0.0116,86263.0,86249.0,0.00017389]
[1766114533286,0.01177339,86267.0,86249.0,0.00017389]
[1766114533600,0.00017389,86267.0,86249.0,0.00017389]
[1766114533793,0.14419,86281.0,86250.0,0.14824]
[1766114534002,0.14419,86290.0,86251.0,0.14824]
[1766114534296,0.0115964,86290.0,86271.0,0.1598388]
[1766114534591,0.14419,86311.0,86279.0,0.14824]
[1766114534899,0.0115953,86298.0,86286.0,0.00017389]
[1766114535089,0.0115957,86295.0,86287.0,0.00588]
[1766114535390,0.0115957,86295.0,86285.0,0.00352]
[1766114535696,0.0001738,86304.0,86268.0,0.14824]
[1766114535697,0.011597,86285.0,86268.0,0.14824]
[1766114535989,0.14419,86295.0,86258.0,0.14824]
[1766114536202,0.0115984,86275.0,86259.0,0.00588]
[1766114536493,0.0115989,86272.0,86268.0,9e-08]
[1766114536692,0.0115989,86272.0,86261.0,9e-08]
[1766114536880,0.0115992,86269.0,86261.0,9e-08]
[1766114537080,0.0115996,86266.0,86261.0,9e-08]
[1766114537283,0.0115991,86270.0,86261.0,9e-08]
[1766114537484,0.011596,86293.0,86261.0,9e-08]
[1766114537485,0.0174768,86287.0,86261.0,0.14824009]
[1766114537685,0.0115971,86284.0,86261.0,0.14824009]
[1766114537889,0.0115971,86284.0,86264.0,0.00017389]
[1766114538186,0.0115979,86279.0,86264.0,0.00017389]
[1766114538582,0.0115958,86294.0,86265.0,0.14824]
[1766114538791,0.0115954,86297.0,86270.0,0.14824]
[1766114538994,0.0115949,86301.0,86275.0,0.14824]
[1766114539288,0.0115943,86305.0,86288.0,0.0115964]
[1766114539587,0.0115943,86305.0,86275.0,0.14824]
[1766114539588,0.0115943,86305.0,86289.0,0.00588]
[1766114540188,0.0115947,86302.0,86289.0,0.00588]
[1766114540988,0.01176819,86306.0,86289.0,0.00588]
[1766114541300,0.00017389,86306.0,86289.0,0.00588]
[1766114541998,0.0115947,86302.0,86289.0,0.00588]
[1766114542299,0.0115943,86305.0,86289.0,0.00588]
[1766114543083,0.00017389,86306.0,86289.0,0.00588]
[1766114543300,0.14419,86305.0,86289.0,0.00296]
[1766114543590,0.00017389,86306.0,86289.0,0.00296]
[1766114544193,0.0115963,86291.0,86288.0,9e-08]
[1766114544391,0.14419,86301.0,86288.0,9e-08]
[1766114544696,0.0115961,86292.0,86288.0,9e-08]
[1766114544891,0.0115964,86290.0,86288.0,9e-08]
[1766114545195,0.0115969,86286.0,86277.0,0.00052]
[1766114545398,0.0115969,86286.0,86277.0,0.00588]
[1766114546589,0.14436389,86290.0,86273.0,0.00017389]
[1766114546789,0.0115982,86276.0,86273.0,3.89e-06]
[1766114548594,0.00588,86282.0,86273.0,3.89e-06]
[1766114548796,0.00017389,86290.0,86277.0,0.011598]
[1766114549006,0.0115949,86301.0,86280.0,0.1598375]
[1766114549199,0.00388,86300.0,86280.0,0.1598375]
[1766114549595,0.00388,86300.0,86278.0,0.002]
[1766114549901,0.0115969,86286.0,86273.0,3.89e-06]
[1766114550195,0.00017389,86288.0,86273.0,3.89e-06]
[1766114550402,0.0115983,86275.0,86273.0,3.89e-06]
[1766114550596,0.14419,86287.0,86273.0,3.89e-06]
[1766114551100,0.0115971,86285.0,86273.0,3.89e-06]
[1766114551512,2.43612,86295.0,86273.0,3.89e-06]
[1766114551513,0.06220911,86321.0,86311.0,0.0115934]
[1766114551702,0.06220911,86321.0,86286.0,0.0579841]
[1766114551703,0.06219988,86347.0,86315.0,0.14824]
[1766114552004,0.00588,86352.0,86330.0,0.00099999]
[1766114552189,0.00588,86352.0,86331.0,0.00588]
[1766114552390,0.00588,86352.0,86337.0,0.01159]
[1766114552593,0.00588,86352.0,86331.0,0.00588]
[1766114552594,6e-08,86350.0,86341.0,0.0115895]
[1766114553102,6e-08,86350.0,86340.0,0.00687999]
[1766114553299,6e-08,86350.0,86340.0,0.01846949]
[1766114553504,6e-08,86350.0,86340.0,0.2198461]
[1766114553802,0.00028,86365.0,86340.0,0.2198461]
[1766114553803,0.00028,86365.0,86345.0,0.0115888]
[1766114554099,0.00028,86365.0,86340.0,0.2082566]
[1766114554100,2.43592,86383.0,86355.0,0.0115875]
[1766114554301,2.43592,86383.0,86351.0,0.14824]
[1766114554302,0.00588,86386.0,86360.0,0.2023766]
[1766114554503,2.43584,86394.0,86328.0,0.14824]
[1766114554504,0.1576947,86377.0,86328.0,0.14824]
[1766114554806,0.1576947,86377.0,86344.0,0.00017376]
[1766114555011,0.14611,86377.0,86345.0,0.00588]
[1766114555495,0.14611,86377.0,86348.0,0.0115885]
[1766114555701,0.14611,86377.0,86345.0,0.00588]
[1766114555905,0.0115849,86376.0,86345.0,0.00588]
[1766114556595,0.00248502,86378.0,86356.0,0.0115874]
[1766114556791,0.0001696,86378.0,86366.0,0.0115861]
[1766114556998,0.00084,86392.0,86367.0,0.00588]
[1766114557204,0.1557729,86391.0,86360.0,0.0115868]
[1766114557387,0.1557729,86391.0,86361.0,0.00196]
[1766114557988,0.00099999,86430.0,86361.0,0.00196]
[1766114557989,0.14419,86405.0,86370.0,0.20137661]
[1766114558195,0.20137661,86400.0,86362.0,0.14824]
[1766114558400,0.0115827,86392.0,86363.0,0.00588]
[1766114558596,0.14419,86384.0,86363.0,0.00588]
[1766114558799,0.1557755,86371.0,86357.0,0.00588]
[1766114559107,0.011586,86367.0,86354.0,0.00196]
[1766114559304,0.00017332,86369.0,86355.0,0.00292]
[1766114559504,0.00017332,86369.0,86356.0,0.00352]
[1766114560093,3.32e-06,86369.0,86352.0,0.14841366]
[1766114560298,3.32e-06,86369.0,86357.0,0.15]
[1766114560603,0.14419,86404.0,86378.0,0.0115844]
[1766114560801,0.0174612,86403.0,86379.0,0.00588]
[1766114561107,0.0115806,86408.0,86381.0,0.1598241]
[1766114561405,0.0115806,86408.0,86379.0,0.00588]
[1766114561406,0.0115815,86401.0,86386.0,0.00017366]
[1766114562401,0.15007,86413.0,86387.0,0.00588]
[1766114562601,0.011581,86404.0,86387.0,0.00588]
[1766114562908,0.0115804,86409.0,86387.0,0.00588]
[1766114563104,0.0115769,86435.0,86387.0,0.00588]
[1766114563105,0.0115769,86435.0,86399.0,0.20137661]
[1766114563308,0.0001736,86417.0,86400.0,0.00588]
[1766114563812,0.0115809,86406.0,86396.0,0.00292]
[1766114564313,0.0115809,86406.0,86395.0,0.00144]
[1766114564606,0.0115809,86406.0,86394.0,0.00072]
[1766114564808,0.1360636,86417.0,86386.0,6e-08]
[1766114564809,0.0115821,86397.0,86386.0,6e-08]
[1766114565113,0.0115795,86416.0,86369.0,2.4342]
[1766114565114,0.0115835,86386.0,86369.0,2.4342]
[1766114565310,0.0115835,86386.0,86370.0,0.00588]
[1766114565897,3.5e-06,86386.0,86370.0,0.00588]
[1766114566102,0.00572,86405.0,86371.0,0.14261]
[1766114566302,0.0115818,86398.0,86380.0,0.34398661]
[1766114566501,0.0115818,86398.0,86381.0,0.00588]
[1766114567412,0.00572,86405.0,86381.0,0.14849]
[1766114568414,0.0115816,86400.0,86381.0,0.14849]
[1766114568610,0.00231435,86418.0,86381.0,0.14849]
[1766114568611,0.13820435,86418.0,86382.0,0.0115838]
[1766114568804,0.0115813,86402.0,86391.0,0.00017366]
[1766114569000,0.0115813,86402.0,86392.0,0.00108]
[1766114569205,0.00356,86415.0,86392.0,0.00108]
[1766114569517,0.00356,86415.0,86391.0,0.00017366]
[1766114569704,0.00356,86415.0,86373.0,2.43372]
[1766114569705,0.0115824,86394.0,86373.0,2.43372]
[1766114569901,0.13589,86399.0,86365.0,2.43368]
[1766114570109,0.20137661,86400.0,86368.0,0.0115858]
[1766114570110,0.0115834,86387.0,86368.0,0.0115858]
[1766114570320,0.0115838,86384.0,86366.0,0.00588]
[1766114570514,0.0115832,86388.0,86367.0,0.0115859]
[1766114570812,0.00017366,86386.0,86370.0,0.21296211]
[1766114571119,3.66e-06,86386.0,86379.0,0.1541943]
[1766114571417,3.66e-06,86386.0,86383.0,0.1541938]
[1766114571710,0.20137661,86430.0,86383.0,0.1541938]
[1766114571711,0.0115801,86411.0,86393.0,0.0115824]
[1766114571915,0.00711435,86418.0,86394.0,0.00588]
[1766114572221,0.0115807,86407.0,86394.0,0.00588]
[1766114572401,0.0115802,86411.0,86394.0,0.00588]
[1766114572600,0.00711435,86418.0,86394.0,0.00588]
[1766114572601,0.0115805,86408.0,86394.0,0.00588]
[1766114572810,0.0115813,86402.0,86394.0,0.00588]
[1766114573306,0.0115817,86399.0,86392.0,0.00017366]
[1766114573511,0.13589,86409.0,86375.0,2.4449849]
[1766114573715,0.13589,86407.0,86376.0,0.00588]
[1766114574321,0.0115823,86395.0,86377.0,0.00588]
[1766114574506,0.01175596,86395.0,86377.0,0.00605366]
[1766114574709,0.00017366,86395.0,86377.0,0.00605366]
[1766114575019,0.01175596,86395.0,86377.0,0.00605366]
[1766114575202,0.01175596,86395.0,86378.0,0.0115844]
[1766114575203,0.00017366,86395.0,86378.0,0.0115844]
[1766114575409,0.0115805,86409.0,86388.0,0.0115831]
[1766114575712,0.0115807,86407.0,86389.0,0.00588]
[1766114575919,0.0115821,86397.0,86386.0,0.00588]
[1766114576119,0.00588,86403.0,86377.0,0.00017366]
[1766114576315,0.0115824,86394.0,86378.0,0.00396]
[1766114576512,0.14177,86403.0,86378.0,0.00396]
[1766114576513,0.0115813,86402.0,86378.0,0.00396]
[1766114576821,0.0115827,86392.0,86379.0,0.0014]
[1766114577016,0.13589,86402.0,86379.0,0.0014]
[1766114577621,0.0115823,86395.0,86379.0,0.0014]
[1766114577918,0.13589,86400.0,86380.0,0.00588]
[1766114578221,0.13589,86400.0,86377.0,0.00017366]
[1766114578222,0.13589,86400.0,86379.0,0.00588]
[1766114578719,0.13589,86400.0,86377.0,0.00017366]
[1766114579018,0.0115837,86384.0,86377.0,6e-08]
[1766114579223,0.0115837,86384.0,86378.0,0.00588]
[1766114579520,0.0115841,86382.0,86378.0,0.00588]
[1766114579712,0.00588,86395.0,86378.0,0.00588]
[1766114579917,0.011583,86390.0,86378.0,0.00588]
[1766114580116,0.0115825,86393.0,86378.0,0.00588]
[1766114580319,0.0115829,86391.0,86378.0,0.00588]
[1766114580722,0.0115826,86393.0,86378.0,0.00588]
[1766114581024,0.0115829,86391.0,86378.0,0.00588]
[1766114581325,0.0001736,86395.0,86378.0,0.00588]
[1766114581625,0.0115828,86391.0,86378.0,0.00588]
[1766114582522,3.6e-06,86395.0,86381.0,0.13583]
[1766114583022,3.6e-06,86395.0,86378.0,0.0174645]
[1766114583218,0.0115859,86395.0,86378.0,0.0115845]
[1766114583525,0.14694,86412.0,86381.0,0.13583]
[1766114583729,0.00588,86411.0,86385.0,0.0115835]
[1766114583914,0.0115819,86398.0,86380.0,0.20137661]
[1766114584223,0.0115818,86399.0,86382.0,0.0115839]
[1766114584609,0.00572,86403.0,86380.0,0.20137661]
[1766114585011,0.011579,86419.0,86379.0,0.14171]
[1766114585012,0.14694,86419.0,86390.0,0.20137661]
[1766114585221,0.00192,86417.0,86395.0,0.00017366]
[1766114585420,0.0115802,86410.0,86395.0,0.00017366]
[1766114585615,0.0115798,86413.0,86395.0,0.01175576]
[1766114586022,0.14694,86416.0,86395.0,0.00017366]
[1766114586220,0.0115797,86414.0,86395.0,0.00017366]
[1766114586522,0.14694,86416.0,86395.0,0.00017366]
[1766114586820,0.0115804,86409.0,86395.0,0.00200366]
[1766114587126,0.0115807,86407.0,86395.0,3.66e-06]
[1766114587322,0.011581,86405.0,86395.0,3.66e-06]
[1766114587929,0.14694,86412.0,86395.0,3.66e-06]
[1766114588314,0.00017,86414.0,86395.0,3.66e-06]
[1766114588523,0.00017,86414.0,86400.0,0.0115814]
[1766114588730,0.00017,86414.0,86401.0,0.00588]
[1766114589021,0.0115775,86430.0,86401.0,0.00588]
[1766114589022,2.43304,86440.0,86401.0,0.14171]
[1766114589246,0.14694,86440.0,86410.0,0.20137661]
[1766114589413,0.00588,86439.0,86411.0,0.00588]
[1766114589619,0.0115772,86433.0,86414.0,0.0115796]
[1766114590019,0.15282,86439.0,86415.0,0.00017366]
[1766114590220,0.011578,86427.0,86415.0,0.00017366]
[1766114590418,0.15282,86434.0,86401.0,0.0115813]
[1766114590623,0.0115802,86410.0,86390.0,2.43288]
[1766114590825,0.0115797,86414.0,86396.0,0.011582]
[1766114591022,0.0115797,86414.0,86391.0,0.00388]
[1766114591023,0.00588,86433.0,86402.0,0.13583]
[1766114591221,0.14694,86435.0,86390.0,2.4444628]
[1766114591222,0.011578,86427.0,86403.0,0.14171]
[1766114591528,0.00588,86432.0,86403.0,0.14171]
[1766114591529,0.0001733,86424.0,86409.0,0.0115803]
[1766114591724,0.0001733,86424.0,86411.0,0.01158]
[1766114592023,0.0001733,86424.0,86415.0,0.0115794]
[1766114592222,0.0001733,86424.0,86412.0,0.0115799]
[1766114592421,0.0001733,86424.0,86410.0,0.00588]
[1766114592621,0.00588,86435.0,86420.0,0.0115787]
[1766114592828,0.00588,86435.0,86411.0,0.13583]
[1766114593425,0.00588,86435.0,86418.0,0.011579]
[1766114593628,0.20137661,86450.0,86418.0,0.011579]
[1766114593629,0.1391,86456.0,86427.0,0.14496]
[1766114593818,0.0115753,86447.0,86433.0,0.00017355]
[1766114594013,0.0115754,86446.0,86433.0,0.00017355]
[1766114594831,0.00588,86447.0,86426.0,0.00588]
[1766114595225,0.00588,86447.0,86426.0,0.15084]
[1766114595527,0.00588,86447.0,86432.0,0.0115771]
[1766114595724,0.0115743,86455.0,86426.0,0.15084]
[1766114595925,0.00017355,86449.0,86432.0,0.00017355]
[1766114596128,0.1506729,86465.0,86434.0,0.14496]
[1766114596333,0.0115706,86482.0,86461.0,0.0115734]
[1766114596625,0.0115702,86485.0,86463.0,0.14496]
[1766114596925,0.0115702,86485.0,86462.0,0.00588]
[1766114596926,0.00231221,86498.0,86480.0,0.0115707]
[1766114597121,1e-08,86498.0,86481.0,0.15084]
[1766114597327,0.0115649,86525.0,86485.0,0.14496]
[1766114597521,0.00588,86524.0,86500.0,0.011568]
[1766114597828,0.1391,86529.0,86503.0,0.00017345]
[1766114598032,0.0115667,86512.0,86503.0,5e-08]
[1766114598231,0.0115692,86493.0,86469.0,0.0115723]
[1766114598417,0.0115701,86486.0,86470.0,0.00588]
[1766114598617,0.0115701,86486.0,86450.0,0.20137661]
[1766114598618,0.0115699,86487.0,86463.0,0.011573]
[1766114598824,0.0115694,86491.0,86467.0,0.0115725]
[1766114599019,0.0115699,86488.0,86468.0,0.00588]
[1766114599227,0.00017312,86487.0,86469.0,0.00605345]
[1766114599627,0.00017312,86487.0,86469.0,0.15101345]
[1766114600322,0.00388,86497.0,86469.0,0.15101345]
[1766114600323,0.00388,86497.0,86482.0,0.0115705]
[1766114600627,0.1391,86521.0,86493.0,0.0115691]
[1766114600827,0.00396,86520.0,86496.0,0.0115687]
[1766114601029,0.0115655,86520.0,86496.0,0.0115687]
[1766114601432,0.20137661,86510.0,86499.0,0.00017345]
[1766114601731,0.20137661,86510.0,86480.0,2.43164]
[1766114601732,0.0115685,86498.0,86480.0,2.43164]
[1766114601933,0.0115685,86498.0,86473.0,0.0115717]
[1766114601934,0.0115685,86498.0,86481.0,0.00588]
[1766114602124,0.1391,86509.0,86481.0,0.00588]
[1766114602325,0.0115677,86504.0,86481.0,0.0174507]
[1766114602532,0.00017345,86501.0,86484.0,0.00017345]
[1766114602833,0.1391,86499.0,86484.0,5e-08]
[1766114603033,0.0115713,86477.0,86455.0,0.1565341]
[1766114603228,0.14498,86488.0,86456.0,0.00588]
[1766114603425,0.0115725,86468.0,86454.0,9.468e-05]
[1766114603617,0.0115733,86462.0,86454.0,9.468e-05]
[1766114603823,0.0115728,86466.0,86454.0,9.468e-05]
[1766114604023,9.468e-05,86465.0,86451.0,5e-08]
[1766114604227,0.20137661,86461.0,86433.0,2.43132]
[1766114604423,0.20137661,86461.0,86421.0,0.14496]
[1766114604424,0.1391,86460.0,86434.0,0.00588]
[1766114604627,9.468e-05,86465.0,86441.0,0.14496]
[1766114604832,9.468e-05,86465.0,86444.0,0.0115756]